[Event "Early-Titled-Tuesday-Blitz-April-23-2024"]
[Site "Chess.com"]
[Date "2024.04.23"]
[Round "11"]
[White "EliteChess0967"]
[Black "ChainedDowntohell"]
[Result "0-1"]
[WhiteElo "2442"]
[BlackElo "2571"]
[TimeControl "180+1"]
[EndTime "10:09:20 PDT"]
[Termination "ChainedDowntohell won by resignation"]

1. d4 {[%clk 0:03:00.9]} 1... d5 {[%clk 0:02:58.4]} 2. Nf3 {[%clk 0:02:59.4]}
2... Bf5 {[%clk 0:02:51.9]} 3. g3 {[%clk 0:02:57.3]} 3... c6 {[%clk 0:02:50.4]}
4. Bg2 {[%clk 0:02:57.3]} 4... e6 {[%clk 0:02:50.3]} 5. O-O {[%clk 0:02:56.7]}
5... h6 {[%clk 0:02:50.3]} 6. c4 {[%clk 0:02:55.8]} 6... Nf6 {[%clk 0:02:47.8]}
7. Nc3 {[%clk 0:02:55.2]} 7... Be7 {[%clk 0:02:46.8]} 8. b3 {[%clk 0:02:54.9]}
8... O-O {[%clk 0:02:46.4]} 9. Nd2 {[%clk 0:02:50.4]} 9... Nbd7 {[%clk
0:02:40.3]} 10. e4 {[%clk 0:02:50.4]} 10... dxe4 {[%clk 0:02:40.2]} 11. Ndxe4
{[%clk 0:02:51.3]} 11... Qa5 {[%clk 0:02:37.1]} 12. Bb2 {[%clk 0:02:48.2]} 12...
Rfd8 {[%clk 0:02:36.6]} 13. Qe2 {[%clk 0:02:46.8]} 13... Rac8 {[%clk 0:02:24.2]}
14. Rfd1 {[%clk 0:02:44.7]} 14... Ba3 {[%clk 0:02:21.3]} 15. Rac1 {[%clk
0:02:30.4]} 15... Nxe4 {[%clk 0:02:19.9]} 16. Nxe4 {[%clk 0:02:30]} 16... b5
{[%clk 0:02:15.5]} 17. Bxa3 {[%clk 0:02:28.1]} 17... Qxa3 {[%clk 0:02:14.3]} 18.
Nc3 {[%clk 0:01:17.2]} 18... bxc4 {[%clk 0:02:11]} 19. Qxc4 {[%clk 0:01:15]}
19... c5 {[%clk 0:01:43.4]} 20. Nb5 {[%clk 0:01:13.6]} 20... Qxa2 {[%clk
0:01:34.5]} 21. Nd6 {[%clk 0:01:12.7]} 21... Nb6 {[%clk 0:01:31.8]} 22. Qb5
{[%clk 0:00:51.4]} 22... Rxd6 {[%clk 0:01:27.1]} 23. dxc5 {[%clk 0:00:51.9]}
23... Rxd1+ {[%clk 0:01:22.2]} 24. Rxd1 {[%clk 0:00:52.3]} 24... Nd5 {[%clk
0:01:21.8]} 25. Bxd5 {[%clk 0:00:50.5]} 25... exd5 {[%clk 0:01:19.3]} 26. c6
{[%clk 0:00:48.3]} 26... Qc2 {[%clk 0:01:15.3]} 27. Re1 {[%clk 0:00:47.1]} 27...
Qxc6 {[%clk 0:01:07.5]} 0-1

[Event "Early-Titled-Tuesday-Blitz-April-23-2024"]
[Site "Chess.com"]
[Date "2024.04.23"]
[Round "11"]
[White "aanshnerurkar"]
[Black "lucasran"]
[Result "1-0"]
[WhiteElo "2399"]
[BlackElo "2571"]
[TimeControl "180+1"]
[EndTime "10:09:21 PDT"]
[Termination "aanshnerurkar won on time"]

1. e4 {[%clk 0:03:00.1]} 1... e5 {[%clk 0:02:26.9]} 2. Nf3 {[%clk 0:02:58.5]}
2... Nc6 {[%clk 0:02:27.1]} 3. Bc4 {[%clk 0:02:57.9]} 3... Bc5 {[%clk
0:02:26.5]} 4. c3 {[%clk 0:02:57.4]} 4... Nf6 {[%clk 0:02:26.4]} 5. d4 {[%clk
0:02:57.3]} 5... exd4 {[%clk 0:02:26.4]} 6. e5 {[%clk 0:02:57.4]} 6... d5 {[%clk
0:02:26.1]} 7. Bb5 {[%clk 0:02:57.6]} 7... Ne4 {[%clk 0:02:24.2]} 8. cxd4 {[%clk
0:02:57.5]} 8... Bb6 {[%clk 0:02:23.8]} 9. Nc3 {[%clk 0:02:56.5]} 9... O-O
{[%clk 0:02:21.9]} 10. Be3 {[%clk 0:02:56.8]} 10... Bg4 {[%clk 0:02:14.2]} 11.
h3 {[%clk 0:02:55.5]} 11... Bxf3 {[%clk 0:02:11.9]} 12. gxf3 {[%clk 0:02:54.5]}
12... Nxc3 {[%clk 0:02:03.7]} 13. bxc3 {[%clk 0:02:54.2]} 13... f6 {[%clk
0:01:51.1]} 14. f4 {[%clk 0:02:52]} 14... fxe5 {[%clk 0:01:41.6]} 15. fxe5
{[%clk 0:02:48.2]} 15... Ne7 {[%clk 0:01:08.3]} 16. Bd3 {[%clk 0:02:37]} 16...
Nf5 {[%clk 0:01:06.1]} 17. Qg4 {[%clk 0:02:34]} 17... Nxe3 {[%clk 0:00:53]} 18.
fxe3 {[%clk 0:02:33.6]} 18... Ba5 {[%clk 0:00:53.3]} 19. Rg1 {[%clk 0:02:00.8]}
19... Bxc3+ {[%clk 0:00:47.2]} 20. Ke2 {[%clk 0:02:00.7]} 20... Qe7 {[%clk
0:00:45.9]} 21. Qh5 {[%clk 0:01:56.4]} 21... h6 {[%clk 0:00:13.7]} 22. Qg6
{[%clk 0:01:52]} 22... Qd7 {[%clk 0:00:01.8]} 23. Qh7+ {[%clk 0:01:50.6]} 23...
Kf7 {[%clk 0:00:02.2]} 24. Rxg7+ {[%clk 0:01:49.8]} 24... Ke8 {[%clk 0:00:02.1]}
25. Rxd7 {[%clk 0:01:49.1]} 1-0

[Event "Early-Titled-Tuesday-Blitz-April-23-2024"]
[Site "Chess.com"]
[Date "2024.04.23"]
[Round "11"]
[White "Shankland"]
[Black "MagnusCarlsen"]
[Result "0-1"]
[WhiteElo "3059"]
[BlackElo "3225"]
[TimeControl "180+1"]
[EndTime "10:09:28 PDT"]
[Termination "MagnusCarlsen won by resignation"]

1. d4 {[%clk 0:03:00.9]} 1... Nc6 {[%clk 0:03:00.9]} 2. e4 {[%clk 0:02:59.6]}
2... d5 {[%clk 0:02:45.2]} 3. e5 {[%clk 0:02:57.1]} 3... Bf5 {[%clk 0:02:44.8]}
4. Nf3 {[%clk 0:02:55.9]} 4... e6 {[%clk 0:02:44]} 5. c3 {[%clk 0:02:55.8]} 5...
f6 {[%clk 0:02:43.2]} 6. Bb5 {[%clk 0:02:55.9]} 6... Qd7 {[%clk 0:02:40.2]} 7.
O-O {[%clk 0:02:55.1]} 7... Nge7 {[%clk 0:02:40.2]} 8. Re1 {[%clk 0:02:49.6]}
8... a6 {[%clk 0:02:40.4]} 9. Ba4 {[%clk 0:02:49.2]} 9... Ng6 {[%clk 0:02:36.5]}
10. Nbd2 {[%clk 0:02:34.9]} 10... b5 {[%clk 0:02:36.2]} 11. Bc2 {[%clk
0:02:35.2]} 11... Bxc2 {[%clk 0:02:36.3]} 12. Qxc2 {[%clk 0:02:35.4]} 12... fxe5
{[%clk 0:02:36.6]} 13. Nxe5 {[%clk 0:02:32.2]} 13... Ncxe5 {[%clk 0:02:34.1]}
14. dxe5 {[%clk 0:02:32.4]} 14... Be7 {[%clk 0:02:26.7]} 15. Nb3 {[%clk
0:02:25.3]} 15... O-O {[%clk 0:02:27.3]} 16. Be3 {[%clk 0:02:15.5]} 16... Nxe5
{[%clk 0:02:22.5]} 17. Bc5 {[%clk 0:02:10.1]} 17... Bd6 {[%clk 0:02:15.7]} 18.
Qe2 {[%clk 0:02:08.9]} 18... Rae8 {[%clk 0:02:15]} 19. Rad1 {[%clk 0:02:03]}
19... Nc4 {[%clk 0:02:13.8]} 20. Bxd6 {[%clk 0:01:44.2]} 20... Qxd6 {[%clk
0:02:12.4]} 21. Nd4 {[%clk 0:01:43.1]} 21... e5 {[%clk 0:02:12.1]} 22. Nf3
{[%clk 0:01:43.3]} 22... e4 {[%clk 0:02:11.9]} 23. Nd4 {[%clk 0:01:42.8]} 23...
Ne5 {[%clk 0:02:04.2]} 24. Qe3 {[%clk 0:01:32.4]} 24... Ng4 {[%clk 0:01:52.4]}
25. Qg3 {[%clk 0:01:32.5]} 25... Qxg3 {[%clk 0:01:52.4]} 26. fxg3 {[%clk
0:01:31.4]} 26... Nf2 {[%clk 0:01:51.5]} 27. Rd2 {[%clk 0:01:29.5]} 27... Nd3
{[%clk 0:01:52.2]} 28. Re3 {[%clk 0:01:28.3]} 28... c5 {[%clk 0:01:51.7]} 29.
Ne2 {[%clk 0:01:23.9]} 29... Re5 {[%clk 0:01:40.2]} 30. b3 {[%clk 0:01:11.6]}
30... Rd8 {[%clk 0:01:25.8]} 31. Nf4 {[%clk 0:00:58.2]} 31... Nxf4 {[%clk
0:01:24.9]} 32. gxf4 {[%clk 0:00:58.2]} 32... Ree8 {[%clk 0:01:25.4]} 33. Re1
{[%clk 0:00:51.4]} 33... d4 {[%clk 0:01:25.4]} 34. cxd4 {[%clk 0:00:51.6]} 34...
cxd4 {[%clk 0:01:26.3]} 35. Red1 {[%clk 0:00:52]} 35... d3 {[%clk 0:01:23.2]}
36. g4 {[%clk 0:00:50.5]} 36... e3 {[%clk 0:01:23]} 0-1

[Event "Early-Titled-Tuesday-Blitz-April-23-2024"]
[Site "Chess.com"]
[Date "2024.04.23"]
[Round "11"]
[White "Ati1517"]
[Black "Schattman"]
[Result "0-1"]
[WhiteElo "2263"]
[BlackElo "2452"]
[TimeControl "180+1"]
[EndTime "10:09:30 PDT"]
[Termination "Schattman won by resignation"]

1. e4 {[%clk 0:03:00.9]} 1... e5 {[%clk 0:03:00.1]} 2. Nf3 {[%clk 0:03:00]} 2...
Nc6 {[%clk 0:03:00.6]} 3. d4 {[%clk 0:03:00.3]} 3... exd4 {[%clk 0:03:00.1]} 4.
Bc4 {[%clk 0:03:00.9]} 4... Bc5 {[%clk 0:02:58.3]} 5. c3 {[%clk 0:03:00.1]} 5...
Nf6 {[%clk 0:02:54.8]} 6. e5 {[%clk 0:02:56.6]} 6... Ne4 {[%clk 0:02:54.5]} 7.
cxd4 {[%clk 0:02:56.6]} 7... Bb4+ {[%clk 0:02:54.1]} 8. Bd2 {[%clk 0:02:57.2]}
8... Nxd2 {[%clk 0:02:52.7]} 9. Nbxd2 {[%clk 0:02:57.8]} 9... d5 {[%clk
0:02:52.1]} 10. Bd3 {[%clk 0:02:55.9]} 10... O-O {[%clk 0:02:50.4]} 11. O-O
{[%clk 0:02:55]} 11... Be7 {[%clk 0:02:48.6]} 12. a3 {[%clk 0:02:52.5]} 12... f6
{[%clk 0:02:47.9]} 13. Re1 {[%clk 0:02:50]} 13... fxe5 {[%clk 0:02:38.1]} 14.
dxe5 {[%clk 0:02:45]} 14... Be6 {[%clk 0:02:37.2]} 15. Qc2 {[%clk 0:02:43.6]}
15... h6 {[%clk 0:02:33.6]} 16. Qc3 {[%clk 0:02:31.4]} 16... Qd7 {[%clk
0:02:22.9]} 17. b4 {[%clk 0:02:21.9]} 17... a6 {[%clk 0:02:22.3]} 18. Nd4 {[%clk
0:02:20.8]} 18... Nxd4 {[%clk 0:02:17.7]} 19. Qxd4 {[%clk 0:02:21.1]} 19... b6
{[%clk 0:02:14.5]} 20. Nb3 {[%clk 0:02:20.5]} 20... Rfc8 {[%clk 0:01:49.5]} 21.
Rac1 {[%clk 0:02:18.3]} 21... a5 {[%clk 0:01:44.5]} 22. b5 {[%clk 0:02:15.9]}
22... Bxa3 {[%clk 0:01:38.1]} 23. f4 {[%clk 0:02:13.8]} 23... Rf8 {[%clk
0:01:36.2]} 24. g3 {[%clk 0:02:08.1]} 24... a4 {[%clk 0:01:36.4]} 25. Nd2 {[%clk
0:02:05.7]} 25... Bc5 {[%clk 0:01:34.7]} 26. Rxc5 {[%clk 0:02:06.2]} 26... bxc5
{[%clk 0:01:35.3]} 27. Qxc5 {[%clk 0:02:06.5]} 27... a3 {[%clk 0:01:31.2]} 28.
Ra1 {[%clk 0:02:03.9]} 28... a2 {[%clk 0:01:30.5]} 29. Qc2 {[%clk 0:02:03.1]}
29... Qe7 {[%clk 0:01:16.6]} 30. Rxa2 {[%clk 0:02:01.5]} 30... Rxa2 {[%clk
0:01:14.7]} 31. Qxa2 {[%clk 0:02:01.6]} 31... Qc5+ {[%clk 0:01:13.6]} 32. Kg2
{[%clk 0:02:01.8]} 32... Qe3 {[%clk 0:01:12.8]} 33. Bf1 {[%clk 0:01:56.2]} 33...
Kh8 {[%clk 0:01:03.4]} 34. Nf3 {[%clk 0:01:55.5]} 34... Qe4 {[%clk 0:00:57.2]}
35. Qd2 {[%clk 0:01:47.5]} 35... Bg4 {[%clk 0:00:49.3]} 36. Be2 {[%clk
0:01:45.7]} 36... d4 {[%clk 0:00:36.7]} 37. Qxd4 {[%clk 0:01:33.8]} 37... Bxf3+
{[%clk 0:00:35.8]} 0-1

[Event "Early-Titled-Tuesday-Blitz-April-23-2024"]
[Site "Chess.com"]
[Date "2024.04.23"]
[Round "11"]
[White "wild3000"]
[Black "GambitGiesbergen"]
[Result "0-1"]
[WhiteElo "2454"]
[BlackElo "2344"]
[TimeControl "180+1"]
[EndTime "10:09:38 PDT"]
[Termination "GambitGiesbergen won by resignation"]

1. a3 {[%clk 0:02:42.6]} 1... e5 {[%clk 0:02:58.6]} 2. b4 {[%clk 0:02:41]} 2...
d5 {[%clk 0:02:57.1]} 3. Bb2 {[%clk 0:02:41.9]} 3... Bd6 {[%clk 0:02:57]} 4. e3
{[%clk 0:02:42.8]} 4... Nf6 {[%clk 0:02:56.6]} 5. Nf3 {[%clk 0:02:43.7]} 5...
Qe7 {[%clk 0:02:56.6]} 6. c4 {[%clk 0:02:43.7]} 6... c6 {[%clk 0:02:57.3]} 7.
Nc3 {[%clk 0:02:42.4]} 7... O-O {[%clk 0:02:57.1]} 8. Be2 {[%clk 0:02:40.8]}
8... Bg4 {[%clk 0:02:49.7]} 9. h3 {[%clk 0:02:40.4]} 9... Bxf3 {[%clk
0:02:49.2]} 10. Bxf3 {[%clk 0:02:41.3]} 10... d4 {[%clk 0:02:49.9]} 11. Ne4
{[%clk 0:02:33]} 11... Nxe4 {[%clk 0:02:49.3]} 12. Bxe4 {[%clk 0:02:33.9]} 12...
f5 {[%clk 0:02:50]} 13. Bf3 {[%clk 0:02:34.1]} 13... e4 {[%clk 0:02:50.1]} 14.
Bh5 {[%clk 0:02:31.2]} 14... g6 {[%clk 0:02:49.4]} 15. Bxd4 {[%clk 0:02:30.8]}
15... gxh5 {[%clk 0:02:49.1]} 16. Qxh5 {[%clk 0:02:31.7]} 16... Be5 {[%clk
0:02:45.6]} 17. Bxe5 {[%clk 0:02:18.2]} 17... Qxe5 {[%clk 0:02:45.4]} 18. O-O
{[%clk 0:02:18.5]} 18... Nd7 {[%clk 0:02:44.7]} 19. f4 {[%clk 0:02:11.4]} 19...
Qg7 {[%clk 0:02:43.1]} 20. Kh1 {[%clk 0:02:04.1]} 20... Rf6 {[%clk 0:02:42.8]}
21. Rg1 {[%clk 0:01:55.5]} 21... Kh8 {[%clk 0:02:39.8]} 22. g4 {[%clk 0:01:55]}
22... Qh6 {[%clk 0:02:11.5]} 23. Qxh6 {[%clk 0:01:48]} 23... Rxh6 {[%clk
0:02:12.4]} 24. gxf5 {[%clk 0:01:44.6]} 24... Rxh3+ {[%clk 0:02:09.3]} 25. Kg2
{[%clk 0:01:44.7]} 25... Rf3 {[%clk 0:02:10.2]} 26. Kh2 {[%clk 0:01:41.8]} 26...
Nf6 {[%clk 0:02:09.7]} 27. Rg2 {[%clk 0:01:27.4]} 27... h5 {[%clk 0:02:06.9]}
28. Rg3 {[%clk 0:01:20.1]} 28... Ng4+ {[%clk 0:02:06.5]} 29. Kh3 {[%clk
0:01:18.5]} 29... Rf2 {[%clk 0:01:55.9]} 30. Rh1 {[%clk 0:01:14.9]} 30... Kg7
{[%clk 0:01:43.8]} 31. Kh4 {[%clk 0:01:10.7]} 31... Kf6 {[%clk 0:01:44.1]} 32.
d3 {[%clk 0:00:55.8]} 32... Kxf5 {[%clk 0:01:34.9]} 33. dxe4+ {[%clk 0:00:53.6]}
33... Kxe4 {[%clk 0:01:35.8]} 34. Rd1 {[%clk 0:00:45.6]} 34... Rg8 {[%clk
0:01:32.1]} 35. Rd4+ {[%clk 0:00:42]} 35... Kf5 {[%clk 0:01:32.6]} 36. Rd3
{[%clk 0:00:34.6]} 36... Rh2+ {[%clk 0:01:30.7]} 37. Rh3 {[%clk 0:00:35.5]}
37... Rxh3+ {[%clk 0:01:31.3]} 38. Kxh3 {[%clk 0:00:35.8]} 38... Nf2+ {[%clk
0:01:32.2]} 0-1

[Event "Early-Titled-Tuesday-Blitz-April-23-2024"]
[Site "Chess.com"]
[Date "2024.04.23"]
[Round "11"]
[White "LaPiToB"]
[Black "Likvidator228"]
[Result "0-1"]
[WhiteElo "2327"]
[BlackElo "2519"]
[TimeControl "180+1"]
[EndTime "10:09:39 PDT"]
[Termination "Likvidator228 won by resignation"]

1. c4 {[%clk 0:02:54.9]} 1... c6 {[%clk 0:02:57.6]} 2. d4 {[%clk 0:02:54.7]}
2... d5 {[%clk 0:02:58.3]} 3. cxd5 {[%clk 0:02:55.2]} 3... cxd5 {[%clk
0:02:58.3]} 4. Bf4 {[%clk 0:02:55.9]} 4... Nc6 {[%clk 0:02:57.8]} 5. Nc3 {[%clk
0:02:56]} 5... a6 {[%clk 0:02:56.6]} 6. e3 {[%clk 0:02:56]} 6... Nf6 {[%clk
0:02:56.7]} 7. Be2 {[%clk 0:02:53]} 7... Bf5 {[%clk 0:02:54.6]} 8. g4 {[%clk
0:02:52.2]} 8... Bc8 {[%clk 0:02:49.3]} 9. h4 {[%clk 0:02:48.8]} 9... e6 {[%clk
0:02:49.4]} 10. g5 {[%clk 0:02:46.1]} 10... Ne4 {[%clk 0:02:47.7]} 11. Nxe4
{[%clk 0:02:38.5]} 11... dxe4 {[%clk 0:02:48.1]} 12. Qc2 {[%clk 0:02:36.8]}
12... Qa5+ {[%clk 0:02:46.9]} 13. Kf1 {[%clk 0:02:36.5]} 13... Qf5 {[%clk
0:02:42]} 14. Rh2 {[%clk 0:02:07.6]} 14... Bd7 {[%clk 0:02:34.7]} 15. Rg2 {[%clk
0:02:06.7]} 15... Nb4 {[%clk 0:02:07.4]} 16. Qb3 {[%clk 0:02:02.2]} 16... Bc6
{[%clk 0:01:48.7]} 17. Rd1 {[%clk 0:01:53.6]} 17... Rc8 {[%clk 0:01:30.3]} 18.
a3 {[%clk 0:01:46.1]} 18... Nd3 {[%clk 0:01:27.8]} 19. Bg4 {[%clk 0:01:36.4]}
19... Qd5 {[%clk 0:01:27.7]} 20. Qxd5 {[%clk 0:01:33.8]} 20... Bxd5 {[%clk
0:01:27.9]} 21. Ne2 {[%clk 0:01:27.3]} 21... Nxb2 {[%clk 0:01:20.9]} 22. Rb1
{[%clk 0:01:26.3]} 22... Bxa3 {[%clk 0:01:21.3]} 23. h5 {[%clk 0:01:22.2]} 23...
b5 {[%clk 0:01:13.2]} 24. Be5 {[%clk 0:01:21.7]} 24... Rg8 {[%clk 0:01:11.6]}
25. Nf4 {[%clk 0:01:19]} 25... Bc4+ {[%clk 0:00:57.7]} 26. Kg1 {[%clk
0:01:18.4]} 26... Nd3 {[%clk 0:00:57.7]} 27. Nxd3 {[%clk 0:01:10.3]} 27... exd3
{[%clk 0:00:56.7]} 28. g6 {[%clk 0:01:04.4]} 28... hxg6 {[%clk 0:00:56.2]} 29.
hxg6 {[%clk 0:01:05.3]} 29... f6 {[%clk 0:00:54.6]} 30. Bf4 {[%clk 0:01:03.8]}
30... d2 {[%clk 0:00:47.3]} 31. Rd1 {[%clk 0:01:01.3]} 31... Bc1 {[%clk
0:00:47.3]} 32. e4 {[%clk 0:00:59.1]} 32... Bb3 {[%clk 0:00:47.7]} 0-1

[Event "Early-Titled-Tuesday-Blitz-April-23-2024"]
[Site "Chess.com"]
[Date "2024.04.23"]
[Round "11"]
[White "Fernando_Offermann"]
[Black "zurzan"]
[Result "1-0"]
[WhiteElo "2479"]
[BlackElo "2150"]
[TimeControl "180+1"]
[EndTime "10:09:44 PDT"]
[Termination "Fernando_Offermann won on time"]

1. Nf3 {[%clk 0:02:56.4]} 1... g6 {[%clk 0:02:58.7]} 2. c4 {[%clk 0:02:55.5]}
2... Bg7 {[%clk 0:02:58.5]} 3. d4 {[%clk 0:02:56.1]} 3... Nf6 {[%clk 0:02:58.1]}
4. Nc3 {[%clk 0:02:56.2]} 4... d6 {[%clk 0:02:58.4]} 5. e4 {[%clk 0:02:56.4]}
5... O-O {[%clk 0:02:58.4]} 6. Be2 {[%clk 0:02:56.7]} 6... c5 {[%clk 0:02:55.9]}
7. d5 {[%clk 0:02:50.2]} 7... e6 {[%clk 0:02:55.2]} 8. O-O {[%clk 0:02:50.3]}
8... exd5 {[%clk 0:02:55.2]} 9. exd5 {[%clk 0:02:51.2]} 9... a6 {[%clk
0:02:55.2]} 10. h3 {[%clk 0:02:51]} 10... Bf5 {[%clk 0:02:46.6]} 11. g4 {[%clk
0:02:51.3]} 11... Bd7 {[%clk 0:02:44.8]} 12. Bf4 {[%clk 0:02:50.5]} 12... Qc7
{[%clk 0:02:39.6]} 13. a4 {[%clk 0:02:50.2]} 13... Re8 {[%clk 0:02:30.3]} 14.
Bd3 {[%clk 0:02:48.4]} 14... h5 {[%clk 0:02:25.1]} 15. g5 {[%clk 0:02:45.7]}
15... Nh7 {[%clk 0:02:21.7]} 16. Kg2 {[%clk 0:02:45.4]} 16... Qc8 {[%clk
0:02:19.3]} 17. Rh1 {[%clk 0:02:44.4]} 17... Qd8 {[%clk 0:01:58.4]} 18. Qd2
{[%clk 0:02:42]} 18... Bf5 {[%clk 0:01:33.9]} 19. Bxf5 {[%clk 0:02:41.6]} 19...
gxf5 {[%clk 0:01:33.8]} 20. h4 {[%clk 0:02:38]} 20... Nd7 {[%clk 0:01:33.4]} 21.
Bxd6 {[%clk 0:02:36.5]} 21... Nhf8 {[%clk 0:01:27.4]} 22. Bf4 {[%clk 0:02:33]}
22... Ng6 {[%clk 0:01:26.8]} 23. Rae1 {[%clk 0:02:30.9]} 23... Nxf4+ {[%clk
0:01:25.1]} 24. Qxf4 {[%clk 0:02:31.2]} 24... Nf8 {[%clk 0:01:01.1]} 25. Qxf5
{[%clk 0:02:30.1]} 25... Qc7 {[%clk 0:00:49]} 26. Ne4 {[%clk 0:02:28.5]} 26...
Ng6 {[%clk 0:00:39]} 27. d6 {[%clk 0:02:20.9]} 27... Qc6 {[%clk 0:00:39.2]} 28.
Re2 {[%clk 0:02:17.1]} 28... Ne5 {[%clk 0:00:32.2]} 29. Rhe1 {[%clk 0:02:09.8]}
29... Nxf3 {[%clk 0:00:31.4]} 30. Qxf3 {[%clk 0:02:08.5]} 30... Re5 {[%clk
0:00:25.3]} 31. Qxh5 {[%clk 0:01:44.9]} 31... Rae8 {[%clk 0:00:23.4]} 32. Qf3
{[%clk 0:01:45]} 32... f5 {[%clk 0:00:17.1]} 33. gxf6 {[%clk 0:01:44.8]} 33...
Bxf6 {[%clk 0:00:06.2]} 34. Nxf6+ {[%clk 0:01:44.3]} 34... Kh8 {[%clk 0:00:02]}
35. Qxc6 {[%clk 0:01:43.5]} 1-0

[Event "Early-Titled-Tuesday-Blitz-April-23-2024"]
[Site "Chess.com"]
[Date "2024.04.23"]
[Round "11"]
[White "ravengelic"]
[Black "Iball95"]
[Result "0-1"]
[WhiteElo "2692"]
[BlackElo "2865"]
[TimeControl "180+1"]
[EndTime "10:09:45 PDT"]
[Termination "Iball95 won by resignation"]

1. d4 {[%clk 0:03:00.9]} 1... d5 {[%clk 0:03:00.1]} 2. Bf4 {[%clk 0:03:01.2]}
2... Nf6 {[%clk 0:03:00.4]} 3. e3 {[%clk 0:03:01.4]} 3... Bf5 {[%clk 0:03:00.8]}
4. Nf3 {[%clk 0:02:58.8]} 4... e6 {[%clk 0:03:01.2]} 5. Nbd2 {[%clk 0:02:55.6]}
5... Bd6 {[%clk 0:03:00.8]} 6. Bg3 {[%clk 0:02:55.6]} 6... O-O {[%clk
0:03:01.1]} 7. Bd3 {[%clk 0:02:55.9]} 7... Re8 {[%clk 0:02:48.1]} 8. O-O {[%clk
0:02:54.8]} 8... c5 {[%clk 0:02:46.7]} 9. Bxf5 {[%clk 0:02:53.5]} 9... exf5
{[%clk 0:02:45.1]} 10. dxc5 {[%clk 0:02:54]} 10... Bxc5 {[%clk 0:02:45.2]} 11.
c4 {[%clk 0:02:52.6]} 11... dxc4 {[%clk 0:02:44.6]} 12. Nxc4 {[%clk 0:02:52.9]}
12... Qe7 {[%clk 0:02:41.7]} 13. Bd6 {[%clk 0:02:51.2]} 13... Bxd6 {[%clk
0:02:39.4]} 14. Qxd6 {[%clk 0:02:52.1]} 14... Nc6 {[%clk 0:02:37.8]} 15. Qxe7
{[%clk 0:02:48]} 15... Rxe7 {[%clk 0:02:38.7]} 16. Rfd1 {[%clk 0:02:48.6]} 16...
g6 {[%clk 0:02:38.2]} 17. Nd4 {[%clk 0:02:44.1]} 17... Rc8 {[%clk 0:02:36.5]}
18. Nd6 {[%clk 0:02:43.1]} 18... Rcc7 {[%clk 0:02:29.7]} 19. N6b5 {[%clk
0:02:29.5]} 19... Rc8 {[%clk 0:02:29.1]} 20. Nxc6 {[%clk 0:02:28.8]} 20... Rxc6
{[%clk 0:02:26]} 21. Nxa7 {[%clk 0:02:26.7]} 21... Rc2 {[%clk 0:02:25.9]} 22. b4
{[%clk 0:02:25.8]} 22... Ne4 {[%clk 0:02:24.4]} 23. Rf1 {[%clk 0:02:23]} 23...
Rd7 {[%clk 0:02:23.2]} 24. Nb5 {[%clk 0:02:06.6]} 24... Rdd2 {[%clk 0:02:22.9]}
25. Nd4 {[%clk 0:02:07.5]} 25... Rxa2 {[%clk 0:02:22.6]} 26. Rxa2 {[%clk
0:02:08.4]} 26... Rxa2 {[%clk 0:02:21.3]} 27. b5 {[%clk 0:02:07.8]} 27... Rb2
{[%clk 0:02:18.9]} 28. h4 {[%clk 0:02:06.3]} 28... Nc3 {[%clk 0:02:14.9]} 29.
Rc1 {[%clk 0:01:54.6]} 29... Nxb5 {[%clk 0:02:14.7]} 30. Rc8+ {[%clk 0:01:55.4]}
30... Kg7 {[%clk 0:02:14.5]} 31. Nxb5 {[%clk 0:01:39.8]} 31... Rxb5 {[%clk
0:02:15.4]} 32. Rc7 {[%clk 0:01:40.7]} 32... h5 {[%clk 0:02:09.6]} 33. g3 {[%clk
0:01:40.3]} 33... Kf6 {[%clk 0:02:09.8]} 34. Kg2 {[%clk 0:01:40.5]} 34... Ke6
{[%clk 0:02:10.1]} 35. Kf3 {[%clk 0:01:40.3]} 35... Rb2 {[%clk 0:02:10.2]} 36.
Kg2 {[%clk 0:01:38.4]} 36... b5 {[%clk 0:02:10.4]} 37. Kf3 {[%clk 0:01:38.2]}
37... b4 {[%clk 0:02:10.5]} 38. Rb7 {[%clk 0:01:36.9]} 38... b3 {[%clk
0:02:09.3]} 39. Rb6+ {[%clk 0:01:35.8]} 39... Kd5 {[%clk 0:02:09.6]} 40. Rf6
{[%clk 0:01:28.1]} 40... Rc2 {[%clk 0:02:08.7]} 41. Rxf7 {[%clk 0:01:25.4]}
41... b2 {[%clk 0:02:08.8]} 42. Rb7 {[%clk 0:01:26]} 42... Kc4 {[%clk
0:02:05.5]} 43. e4 {[%clk 0:01:26.4]} 43... fxe4+ {[%clk 0:02:04.8]} 44. Kxe4
{[%clk 0:01:27.3]} 44... Rxf2 {[%clk 0:02:04.3]} 45. Ke3 {[%clk 0:01:27.7]}
45... Rc2 {[%clk 0:01:53.6]} 46. Kf4 {[%clk 0:01:27.4]} 46... Kc3 {[%clk
0:01:44.3]} 47. Kg5 {[%clk 0:01:27.5]} 47... Rg2 {[%clk 0:01:43.2]} 48. Kxg6
{[%clk 0:01:27.1]} 48... Rxg3+ {[%clk 0:01:42.1]} 49. Kxh5 {[%clk 0:01:27.4]}
49... Kc2 {[%clk 0:01:42.2]} 50. Rxb2+ {[%clk 0:01:21.7]} 50... Kxb2 {[%clk
0:01:43.1]} 51. Kh6 {[%clk 0:01:22.1]} 51... Kc3 {[%clk 0:01:40.4]} 52. h5
{[%clk 0:01:22.6]} 52... Kd4 {[%clk 0:01:40.8]} 53. Kh7 {[%clk 0:01:23.1]} 53...
Ke5 {[%clk 0:01:39.5]} 54. h6 {[%clk 0:01:23.1]} 54... Kf6 {[%clk 0:01:39.7]}
55. Kh8 {[%clk 0:01:23.4]} 55... Kg6 {[%clk 0:01:38.7]} 56. h7 {[%clk
0:01:21.1]} 56... Ra3 {[%clk 0:01:38.9]} 0-1